bitfinex/quotes_SOLUSD_20240908
["timestamp","ask_amount","ask_price","bid_price","bid_amount"]
[1725780802099,22.7769,129.96,129.86,20.0]
[1725780802310,45.9969,129.96,129.86,20.0]
[1725780802518,22.7769,129.96,129.86,20.0]
[1725780803224,45.0,129.95,129.86,20.0]
[1725780805207,68.22,129.95,129.86,20.0]
[1725780805594,68.22,129.95,129.85,20.0]
[1725780805795,68.22,129.95,129.83,9.64428262]
[1725780805796,68.22,129.95,129.84,20.0]
[1725780806815,45.0,129.95,129.85,9.64428262]
[1725780807016,45.0,129.95,129.86,20.0]
[1725780807196,68.22,129.95,129.86,20.0]
[1725780808097,45.0,129.95,129.86,20.0]
[1725780808512,68.22,129.95,129.86,20.0]
[1725780808703,23.22,129.93,129.86,20.0]
[1725780808901,45.0,129.92,129.83,29.64428262]
[1725780809131,6.5572,129.91,129.83,20.0]
[1725780809424,15.3109,129.89,129.79,15.8649]
[1725780809623,45.0,129.88,129.78,6.4044]
[1725780809920,45.0,129.88,129.78,16.04868262]
[1725780810731,45.0,129.88,129.78,6.4044]
[1725780811029,45.0,129.88,129.79,20.0]
[1725780820311,68.22,129.88,129.79,20.0]
[1725780820819,45.0,129.88,129.77,20.0]
[1725780821908,6.0924,129.87,129.77,20.0]
[1725780822109,45.0,129.86,129.77,20.0]
[1725780822623,15.3099,129.85,129.77,20.0]
[1725780822930,45.0,129.84,129.77,20.0]
[1725780824414,45.0,129.84,129.78,1.540634]
[1725780824752,45.0,129.84,129.77,20.0]
[1725780825108,45.0,129.84,129.78,23.98952483]
[1725780825330,45.0,129.84,129.79,20.0]
[1725780826327,15.3099,129.85,129.79,20.0]
[1725780826516,15.3099,129.85,129.8,1.54036953]
[1725780826719,15.3099,129.85,129.8,25.52989436]
[1725780827028,15.3099,129.85,129.81,20.0]
[1725780827626,16.666,129.88,129.81,20.0]
[1725780827926,16.666,129.88,129.82,23.98952483]
[1725780828131,16.666,129.88,129.83,20.0]
[1725780828929,6.495,129.9,129.83,20.0]
[1725780830814,45.0,129.89,129.83,20.0]
[1725780832436,15.6752,129.91,129.84,23.98952483]
[1725780832743,45.0,129.9,129.85,20.0]
[1725780834021,45.0,129.9,129.85,29.584664]
[1725780835342,15.6752,129.91,129.85,29.584664]
[1725780836038,15.6752,129.91,129.85,20.0]
[1725780836224,45.0,129.9,129.84,9.584664]
[1725780836419,45.0,129.9,129.85,20.0]
[1725780836645,15.6752,129.91,129.85,20.0]
[1725780838021,45.0,129.9,129.85,20.0]
[1725780840550,45.0,129.9,129.85,21.54005156]
[1725780841948,15.6752,129.94,129.86,9.584664]
[1725780842136,15.6752,129.94,129.87,20.0]
[1725780842633,15.6752,129.94,129.88,1.53968289]
[1725780842837,15.6752,129.94,129.88,9.584664]
[1725780843147,6.2808,129.96,129.89,20.0]
[1725780843833,15.6752,129.97,129.89,20.0]
[1725780844337,15.6752,129.97,129.9,9.584664]
[1725780844536,15.6752,129.97,129.91,20.0]
[1725780847953,45.0,129.96,129.91,20.0]
[1725780848464,45.0,129.96,129.87,16.544]
[1725780848634,45.0,129.96,129.86,9.584664]
[1725780849637,68.22,129.96,129.85,6.6223]
[1725780850244,6.4359,129.95,129.85,6.6223]
[1725780850440,45.0,129.94,129.85,6.6223]
[1725780851133,45.0,129.94,129.86,20.0]
[1725780851534,15.8776,129.93,129.83,16.605]
[1725780851837,45.0,129.92,129.82,16.014264]
[1725780853153,45.0,129.92,129.83,20.0]
[1725780856157,6.4359,129.91,129.83,20.0]
[1725780856454,45.0,129.9,129.83,20.0]
[1725780857337,15.8776,129.89,129.83,20.0]
[1725780857556,45.0,129.88,129.83,20.0]
[1725780861259,15.8776,129.89,129.84,9.584664]
[1725780861459,15.8776,129.89,129.85,20.0]
[1725780865538,15.8776,129.89,129.83,20.0]
[1725780866574,15.8776,129.89,129.84,11.12469908]
[1725780866752,15.8776,129.89,129.85,20.0]
[1725780868377,15.8776,129.89,129.83,9.584664]
[1725780868672,6.4359,129.91,129.84,20.0]
[1725780869046,16.3351,129.92,129.85,9.584664]
[1725780869253,16.3351,129.92,129.86,20.0]
[1725780869955,16.3351,129.92,129.87,9.584664]
[1725780870159,16.3351,129.92,129.88,20.0]
[1725780871474,16.3351,129.92,129.88,19.97004]
[1725780872753,16.3351,129.92,129.86,9.584664]
[1725780873679,16.3351,129.92,129.87,20.0]
[1725780875386,45.0,129.91,129.87,20.0]
[1725780875571,45.0,129.91,129.86,20.0]
[1725780879450,15.6896,129.97,129.89,9.584664]
[1725780879650,15.6896,129.97,129.91,9.584664]
[1725780879979,15.6896,129.97,129.92,20.0]
[1725780881976,45.0,129.96,129.92,20.0]
[1725780882958,15.6896,129.97,129.92,20.0]
[1725780884177,15.6896,129.97,129.93,9.584664]
[1725780884481,15.6896,129.97,129.94,20.0]
[1725780885562,45.0,129.96,129.91,9.584664]
[1725780885763,45.0,129.96,129.92,20.0]
[1725780890283,45.0,129.96,129.92,29.584664]
[1725780891681,45.0,129.96,129.92,20.0]
[1725780891853,45.0,129.96,129.91,9.584664]
[1725780892059,45.0,129.96,129.92,20.0]
[1725780895359,45.0,129.96,129.93,9.584664]
[1725780896679,45.0,129.96,129.94,20.0]
[1725780899585,45.0,129.96,129.92,20.0]
[1725780899806,45.0,129.96,129.91,9.584664]
[1725780899986,45.0,129.96,129.92,20.0]
[1725780900671,45.0,129.96,129.91,20.0]
[1725780901362,45.0,129.96,129.92,9.584664]
[1725780901679,45.0,129.96,129.93,20.0]
[1725780902870,15.6896,129.97,129.93,20.0]
[1725780903286,30.6480738,129.99,129.82,9.51819278]
[1725780903287,38.8256,129.95,129.83,6.3598]
[1725780903587,51.44567386,129.95,129.83,15.944464]
[1725780903895,38.8256,129.94,129.83,15.944464]
[1725780904079,45.0,129.93,129.83,15.944464]
[1725780904880,23.22,129.92,129.83,15.944464]
[1725780905187,45.0,129.91,129.83,15.944464]
[1725780905864,45.0,129.91,129.85,9.584664]
[1725780906063,45.0,129.91,129.86,20.0]
[1725780906268,45.0,129.91,129.84,29.584664]
[1725780907374,23.1824,129.9,129.84,20.0]
[1725780907566,45.0,129.89,129.82,9.584664]
[1725780907777,45.0,129.89,129.83,20.0]
[1725780912879,45.0,129.89,129.81,20.0]
[1725780914910,16.3121,129.88,129.75,21.674]
[1725780915191,45.0,129.87,129.78,9.584664]
[1725780916186,6.2476,129.86,129.78,9.584664]
[1725780916394,6.2476,129.86,129.79,20.0]
[1725780916395,45.0,129.85,129.79,20.0]
[1725780916601,16.3121,129.84,129.79,20.0]
[1725780916786,45.0,129.83,129.79,20.0]
[1725780916982,45.0,129.83,129.75,21.674]
[1725780917188,45.0,129.83,129.75,16.212764]
[1725780917580,45.0,129.83,129.76,1.54097756]
[1725780917983,45.0,129.83,129.77,1.54084659]
[1725780918476,45.0,129.83,129.75,16.212764]
[1725780919180,45.0,129.83,129.77,9.584664]
[1725780919384,16.3121,129.84,129.79,9.584664]
[1725780919685,16.3121,129.84,129.8,20.0]
[1725780925898,6.2476,129.86,129.81,9.584664]
[1725780926090,15.0794,129.87,129.82,20.0]
[1725780926403,15.0794,129.87,129.83,11.12486889]
[1725780926609,15.0794,129.87,129.84,20.0]
[1725780928902,15.0794,129.87,129.82,20.0]
[1725780940209,45.0,129.86,129.8,20.0]
[1725780941322,45.0,129.86,129.77,32.016064]
[1725780942823,45.0,129.86,129.78,20.0]
[1725780949011,6.5424,129.85,129.78,20.0]
[1725780949208,16.27,129.83,129.78,20.0]
[1725780949426,45.0,129.82,129.76,20.0]
[1725780949623,45.0,129.82,129.71,21.6131]
[1725780949624,22.8124,129.81,129.71,21.6131]
[1725780949803,22.8124,129.81,129.73,9.584664]
[1725780950003,45.0,129.8,129.73,9.584664]
[1725780950221,45.0,129.8,129.71,21.6131]
[1725780950405,45.0,129.8,129.72,9.584664]
[1725780950804,45.0,129.8,129.71,21.6131]
[1725780951009,45.0,129.8,129.72,9.584664]
[1725780951207,45.0,129.8,129.72,29.584664]
[1725780952802,45.0,129.8,129.74,9.584664]
[1725780952999,45.0,129.8,129.75,21.54114714]
[1725780953242,45.0,129.8,129.75,20.0]
[1725780953829,22.8124,129.81,129.75,20.0]
[1725780955420,45.0,129.8,129.75,20.0]
[1725780959923,45.0,129.8,129.73,9.584664]
[1725780960131,45.0,129.8,129.74,20.0]
[1725780960711,45.0,129.8,129.72,29.584664]
[1725780961232,45.0,129.8,129.72,20.0]
[1725780961423,45.0,129.8,129.71,20.0]
[1725780962232,16.27,129.79,129.71,20.0]
[1725780962529,45.0,129.78,129.71,20.0]
[1725780962934,45.0,129.78,129.71,29.584664]
[1725780965339,45.0,129.78,129.73,9.584664]
[1725780965541,16.27,129.79,129.74,20.0]
[1725780965835,16.27,129.79,129.75,9.584664]
[1725780966137,16.27,129.79,129.76,20.0]
[1725780966632,6.5424,129.81,129.77,11.12564096]
[1725780966811,6.5424,129.81,129.78,20.0]
[1725780967351,15.3709,129.82,129.78,20.0]
[1725780972528,15.2209,129.82,129.78,20.0]
[1725780976633,15.2209,129.82,129.75,9.584664]
[1725780976835,15.2209,129.82,129.76,20.0]
[1725780977743,45.0,129.81,129.74,9.584664]
[1725780977940,45.0,129.81,129.75,20.0]
[1725780978833,45.0,129.81,129.73,20.0]
[1725780979549,15.8538,129.79,129.7,20.0]
[1725780979721,45.0,129.78,129.69,22.6976]
[1725780979920,45.0,129.78,129.7,9.584664]
[1725780980518,68.22,129.78,129.7,9.584664]
[1725780980722,68.22,129.78,129.7,11.12638277]
[1725780980938,45.0,129.78,129.7,9.584664]
[1725780981145,45.0,129.78,129.71,20.0]
[1725780982325,68.22,129.78,129.71,20.0]
[1725780987452,45.0,129.78,129.72,9.584664]
[1725780987629,45.0,129.78,129.73,20.0]
[1725780988245,45.0,129.78,129.71,20.0]
[1725780988550,45.0,129.78,129.7,20.0]
[1725780993245,68.19,129.78,129.7,20.0]
[1725780993429,15.0248,129.77,129.7,20.0]
[1725780993631,45.0,129.76,129.7,20.0]
[1725780994854,15.0248,129.77,129.7,20.0]
[1725780995843,45.0,129.76,129.7,20.0]
[1725780996956,15.0248,129.77,129.71,9.584664]
[1725780997254,15.0248,129.77,129.72,20.0]
[1725781004233,45.0,129.76,129.72,20.0]
[1725781005044,45.0,129.76,129.7,20.0]
[1725781014361,45.0,129.76,129.7,9.584664]
[1725781014676,45.0,129.76,129.71,20.0]
[1725781015640,45.0,129.76,129.7,9.584664]
[1725781015848,45.0,129.76,129.71,20.0]
[1725781017574,45.0,129.76,129.69,11.13011525]
[1725781017756,45.0,129.76,129.7,20.0]
[1725781019583,45.0,129.76,129.69,9.584664]
[1725781019765,45.0,129.76,129.7,20.0]
[1725781020857,68.19,129.76,129.7,20.0]
[1725781021068,74.7127,129.76,129.67,29.584664]
[1725781021253,39.676,129.75,129.67,29.584664]
[1725781021560,45.0,129.74,129.67,29.584664]
[1725781023877,45.0,129.74,129.67,20.0]
[1725781024180,45.0,129.74,129.66,9.584664]
[1725781024472,45.0,129.74,129.67,20.0]
[1725781024848,45.0,129.74,129.68,9.584664]
[1725781025057,45.0,129.74,129.69,20.0]
[1725781027161,16.486,129.75,129.69,20.0]
[1725781028172,45.0,129.74,129.69,20.0]
[1725781034074,45.0,129.74,129.69,17.886079]
[1725781035193,16.486,129.75,129.7,9.584664]
[1725781035402,16.486,129.75,129.71,1.54172239]
[1725781035688,16.486,129.75,129.7,9.584664]
[1725781035888,15.9847,129.78,129.72,9.584664]
[1725781036080,15.9847,129.78,129.73,20.0]
[1725781037681,45.0,129.77,129.73,20.0]
[1725781038394,15.9847,129.78,129.73,20.0]
[1725781038981,50.90644053,129.78,129.69,9.584664]
[1725781039291,50.90644053,129.78,129.7,20.0]
[1725781039292,11.73174053,129.77,129.7,20.0]
[1725781039793,45.0,129.76,129.7,20.0]
[1725781040690,45.0,129.77,129.7,20.0]
[1725781041682,45.0,129.77,129.71,9.584664]
[1725781041881,45.0,129.77,129.72,20.0]
[1725781051911,45.0,129.77,129.72,19.5]
[1725781054009,68.19,129.77,129.7,20.0]
[1725781054310,68.19,129.77,129.73,20.0]
[1725781054487,68.19,129.77,129.7,20.0]
[1725781054891,68.19,129.77,129.59,79.5]
[1725781055210,68.19,129.77,129.55,32.47929767]
[1725781055211,23.19,129.75,129.66,9.584664]
[1725781055411,45.0,129.74,129.66,9.584664]
[1725781055801,68.19,129.74,129.66,9.584664]
[1725781056409,45.0,129.74,129.66,9.584664]
[1725781056799,45.0,129.75,129.66,9.584664]
[1725781057115,45.0,129.75,129.67,20.0]
[1725781057719,68.19,129.75,129.67,20.0]
[1725781060493,68.19,129.75,129.67,9.584664]
[1725781060689,68.19,129.75,129.68,20.0]
[1725781061096,45.0,129.75,129.68,20.0]
[1725781071610,68.19,129.75,129.68,20.0]
[1725781073124,45.0,129.75,129.68,20.0]
[1725781073827,45.0,129.75,129.68,21.54201145]
[1725781074122,45.0,129.75,129.68,20.0]
[1725781076926,45.0,129.75,129.69,9.584664]
[1725781077225,45.0,129.75,129.7,20.0]
[1725781080220,45.0,129.75,129.71,9.584664]
[1725781080608,45.0,129.75,129.7,20.0]
[1725781081231,45.0,129.75,129.69,20.0]
[1725781086223,14.73552858,129.77,129.72,9.584664]
[1725781086224,11.73174053,129.77,129.72,9.584664]
[1725781086425,15.9134,129.79,129.76,9.584664]
[1725781086737,15.9134,129.82,129.78,9.584664]
[1725781086929,15.9134,129.82,129.77,20.0]
[1725781086930,15.9134,129.82,129.79,20.0]
[1725781087108,15.9134,129.82,129.78,9.584664]
[1725781087312,15.9134,129.82,129.79,20.0]
[1725781087933,22.0793,129.85,129.79,20.0]
[1725781088232,45.2693,129.85,129.79,20.0]
[1725781088736,45.2693,129.85,129.77,20.0]
[1725781089913,45.0,129.84,129.77,20.0]
[1725781090419,15.9134,129.85,129.8,9.584664]
[1725781090618,15.9134,129.85,129.81,20.0]
[1725781092438,15.9134,129.85,129.8,9.584664]
[1725781092621,15.3628,129.88,129.82,9.584664]
[1725781093239,15.3628,129.88,129.83,20.0]
[1725781093835,45.0,129.87,129.83,20.0]
[1725781097619,15.3628,129.88,129.83,20.0]
[1725781097836,15.3628,129.88,129.84,9.584664]
[1725781098141,15.3628,129.88,129.85,20.0]
[1725781099229,45.0,129.87,129.85,20.0]
[1725781099435,45.0,129.87,129.83,20.0]
[1725781101130,45.0,129.87,129.84,9.584664]
[1725781101337,45.0,129.87,129.85,20.0]
[1725781105154,15.9256,129.91,129.85,20.0]
[1725781105656,45.0,129.9,129.85,20.0]
[1725781106048,68.19,129.9,129.83,20.0]
[1725781109856,45.0,129.9,129.83,20.0]
[1725781112343,45.0,129.9,129.84,9.584664]
[1725781112538,45.0,129.9,129.85,20.0]
[1725781113371,15.9256,129.91,129.85,20.0]
[1725781114870,45.0,129.9,129.85,20.0]
[1725781115364,36.41249091,129.96,129.88,9.584664]
[1725781115545,59.60249091,129.96,129.89,20.0]
[1725781116268,16.0578738,129.99,129.92,9.584664]
[1725781116468,16.0578738,129.99,129.93,20.0]
[1725781117376,39.2478738,129.99,129.93,20.0]
[1725781117551,45.7298738,129.99,129.91,20.0]
[1725781118966,45.0,129.98,129.91,20.0]
[1725781119354,22.5398738,129.99,129.91,20.0]
[1725781119949,22.5398738,129.99,129.91,29.584664]
[1725781121269,45.0,129.98,129.91,29.584664]
[1725781122546,45.0,129.98,129.91,31.12391149]
[1725781122746,45.0,129.98,129.93,9.584664]
[1725781122946,45.0,129.98,129.94,20.0]
[1725781123163,16.0578738,129.99,129.94,20.0]
[1725781123164,0.8794738,129.99,129.94,20.0]
[1725781123754,0.8794738,129.99,129.95,9.584664]
[1725781123964,0.8794738,129.99,129.96,20.0]
[1725781124673,0.8794738,129.99,129.93,20.0]
[1725781125183,0.8794738,129.99,129.94,15.781764]
[1725781125350,0.8794738,129.99,129.96,9.584664]
[1725781125556,0.8794738,129.99,129.97,20.0]
[1725781126364,0.8794738,129.99,129.95,20.0]
[1725781126573,0.8794738,129.99,129.95,29.584664]
[1725781127081,0.8794738,129.99,129.97,9.584664]
[1725781127566,0.8794738,129.99,129.98,20.0]
[1725781127972,0.8794738,129.99,129.95,29.584664]
[1725781130674,0.8794738,129.99,129.95,20.0]
[1725781130983,0.8794738,129.99,129.95,35.2014]
[1725781131279,0.8794738,129.99,129.96,9.584664]
[1725781131486,0.8794738,129.99,129.97,20.0]
[1725781132278,0.8794738,129.99,129.98,9.584664]
[1725781132466,0.8794738,129.99,129.98,29.584664]
[1725781133081,0.8794738,129.99,129.98,20.0]
[1725781133376,0.8794738,129.99,129.97,9.584664]
[1725781133556,0.8794738,129.99,129.98,20.0]
[1725781139378,0.8794738,129.99,129.96,20.0]
[1725781139577,0.8794738,129.99,129.95,29.584664]
[1725781148993,0.8794738,129.99,129.95,31.1235284]
[1725781149474,0.8794738,129.99,129.96,1.53886443]
[1725781155374,0.8794738,129.99,129.97,9.584664]
[1725781155582,0.8794738,129.99,129.98,20.0]
[1725781169696,0.8794738,129.99,129.98,21.53861622]
[1725781170600,0.8794738,129.99,129.98,20.0]
[1725781172992,6.6656,130.07,129.98,20.0]
[1725781172993,23.0721,130.07,129.98,20.0]
[1725781173192,23.0721,130.07,130.02,9.584664]
[1725781173504,23.0721,130.07,130.03,20.0]
[1725781176401,45.0,130.06,130.03,20.0]
[1725781176786,45.0,130.06,130.02,9.584664]
[1725781176985,45.0,130.06,130.03,20.0]
[1725781178088,16.4065,130.07,130.03,20.0]
[1725781178808,6.24815407,130.08,130.04,9.584664]
[1725781178987,6.24815407,130.08,130.03,20.0]
[1725781178988,6.24815407,130.08,130.06,9.584664]
[1725781179313,6.24815407,130.08,130.07,20.0]
[1725781181312,6.24815407,130.08,130.06,9.584664]
[1725781181481,6.24815407,130.08,130.07,20.0]
[1725781185903,6.24815407,130.08,130.04,21.53735643]
[1725781186109,6.24815407,130.08,130.05,11.1221768]
[1725781186401,6.24815407,130.08,130.06,20.0]
[1725781186819,6.24815407,130.08,130.06,21.53743427]
[1725781186988,6.24815407,130.08,130.06,20.0]
[1725781188206,6.24815407,130.08,130.07,9.584664]
[1725781188413,16.0091738,130.12,130.07,51.284564]
[1725781188414,0.8794738,130.12,130.07,51.284564]
[1725781188584,0.8794738,130.12,130.08,20.0]
[1725781188998,0.8794738,130.12,130.09,9.584664]
[1725781189200,0.8794738,130.12,130.1,20.0]
[1725781193708,0.8794738,130.12,130.04,15.4847]
[1725781193709,0.8794738,130.12,130.08,20.0]
[1725781193907,0.8794738,130.12,130.07,9.584664]
[1725781194108,0.8794738,130.12,130.08,21.5373392]
[1725781196116,0.8794738,130.12,130.09,20.0]
[1725781196919,0.30746,130.1,130.09,20.0]
[1725781197089,0.30746,130.1,130.09,21.53720451]
[1725781198013,0.30746,130.1,130.09,21.53710181]
[1725781200307,0.30746,130.1,130.09,20.0]
[1725781208436,0.30746,130.1,130.07,9.584664]
[1725781208621,0.30746,130.1,130.08,20.0]
[1725781210224,0.30746,130.1,130.08,9.584664]
[1725781210406,0.30746,130.1,130.09,20.0]
[1725781213228,0.30746,130.1,130.09,21.53709684]
[1725781213603,0.30746,130.1,130.09,20.0]
[1725781214729,0.30746,130.1,130.09,9.584664]
[1725781215209,0.30746,130.1,130.09,29.584664]
[1725781223406,0.30746,130.1,130.09,20.0]
[1725781224029,15.2234,130.09,130.0,15.7342]
[1725781224236,15.2234,130.09,130.03,9.584664]
[1725781224619,45.0,130.08,130.03,9.584664]
[1725781226218,15.2234,130.09,130.03,9.584664]
[1725781226623,15.2234,130.09,130.04,20.0]
[1725781230743,15.2234,130.09,130.05,9.584664]
[1725781230925,15.2234,130.09,130.06,20.0]
[1725781237240,15.2234,130.09,130.04,9.584664]
[1725781237438,15.2234,130.09,130.05,20.0]
[1725781238435,15.2234,130.09,130.04,9.584664]
[1725781238628,15.2234,130.09,130.05,20.0]
[1725781241029,45.0,130.08,130.05,20.0]
[1725781243443,45.0,130.08,130.04,20.0]
[1725781251049,15.2234,130.09,130.04,20.0]
[1725781252240,45.0,130.08,130.04,20.0]
[1725781256136,45.0,130.08,130.05,20.0]
[1725781256737,45.0,130.08,130.04,20.0]
[1725781257628,45.0,130.08,130.05,9.584664]
[1725781257921,15.2234,130.09,130.06,20.0]
[1725781258745,0.30746,130.1,130.06,20.0]
[1725781260243,45.30746,130.1,130.06,20.0]
[1725781260832,45.30746,130.1,130.03,9.584664]
[1725781261069,45.30746,130.1,130.04,20.0]
[1725781261353,0.30746,130.1,130.07,9.584664]
[1725781261669,0.30746,130.1,130.08,20.0]
[1725781268627,0.30746,130.1,130.09,11.12211481]
[1725781268830,0.30746,130.1,130.09,31.12211481]
[1725781269249,0.30746,130.1,130.09,29.584664]
[1725781269845,0.8794738,130.12,130.09,45.548864]
[1725781270069,0.8794738,130.12,130.11,9.584664]
[1725781270235,0.8794738,130.12,130.11,29.584664]
[1725781272258,0.8794738,130.12,130.11,20.0]
[1725781272435,0.8794738,130.12,130.08,6.3067]
[1725781272436,0.8794738,130.12,130.1,9.584664]
[1725781272635,0.8794738,130.12,130.11,20.0]
[1725781283465,0.8794738,130.12,130.11,21.53672408]
[1725781288184,0.8794738,130.12,130.11,20.0]
[1725781288548,0.43012214,130.17,130.11,20.0]
[1725781288749,0.43012214,130.17,130.16,9.584664]
[1725781288957,0.43012214,130.17,130.16,29.584664]
[1725781292576,0.43012214,130.17,130.16,31.12082962]
[1725781292874,0.43012214,130.17,130.16,29.584664]
[1725781293573,0.43012214,130.17,130.16,20.0]
[1725781293872,0.43012214,130.17,130.16,9.584664]
[1725781294068,0.43012214,130.17,130.16,29.584664]
[1725781295363,0.43012214,130.17,130.16,20.0]
[1725781295550,0.43012214,130.17,130.16,9.584664]
[1725781295751,0.43012214,130.17,130.16,29.277344]
[1725781299882,0.43012214,130.17,130.14,9.584664]
[1725781301062,0.43012214,130.17,130.12,9.584664]
[1725781302576,0.43012214,130.17,130.13,20.0]
[1725781304267,0.43012214,130.17,130.16,9.584664]
[1725781304573,0.43012214,130.17,130.16,29.584664]
[1725781314181,0.43012214,130.17,130.16,20.0]
[1725781314377,0.43012214,130.17,130.13,20.0]
[1725781314676,0.43012214,130.17,130.15,9.584664]
[1725781314976,0.43012214,130.17,130.16,20.0]
[1725781316281,0.43012214,130.17,130.14,9.584664]
[1725781316486,0.43012214,130.17,130.15,20.0]
[1725781316661,0.43012214,130.17,130.14,9.584664]
[1725781316982,0.43012214,130.17,130.15,20.0]
[1725781318586,0.43012214,130.17,130.14,9.584664]
[1725781318799,0.43012214,130.17,130.15,20.0]
[1725781320458,0.43012214,130.17,130.14,20.0]
[1725781320662,0.43012214,130.17,130.13,9.584664]
[1725781320888,0.43012214,130.17,130.14,20.0]
[1725781321791,0.43012214,130.17,130.1,6.2384]
[1725781321792,0.43012214,130.17,130.13,9.584664]
[1725781322098,0.43012214,130.17,130.14,20.0]
[1725781324813,0.43012214,130.17,130.15,11.12113741]
[1725781325093,0.43012214,130.17,130.16,20.0]
[1725781325685,0.43012214,130.17,130.16,21.53632912]
[1725781328590,0.43012214,130.17,130.16,20.0]
[1725781333291,0.43012214,130.17,130.15,9.584664]
[1725781333496,0.43012214,130.17,130.16,20.0]
[1725781340488,0.43012214,130.17,130.16,21.53641259]
[1725781344303,0.43012214,130.17,130.16,20.0]
[1725781347908,0.43012214,130.17,130.16,9.584664]
[1725781348085,0.43012214,130.17,130.16,29.584664]
[1725781348285,0.43012214,130.17,130.16,20.0]
[1725781348506,0.43012214,130.17,130.16,29.584664]
[1725781348702,0.43012214,130.17,130.16,9.584664]
[1725781348881,0.43012214,130.17,130.16,29.584664]
[1725781349705,0.26377054,130.17,130.16,29.584664]
[1725781356217,0.26377054,130.17,130.16,20.0]
[1725781356428,0.26377054,130.17,130.1,22.8496]
[1725781356710,0.26377054,130.17,130.11,9.584664]
[1725781356935,45.26377054,130.17,130.11,9.584664]
[1725781358200,45.26377054,130.17,130.12,20.0]
[1725781359020,45.26377054,130.17,130.07,16.5812]
[1725781359311,45.26377054,130.17,130.1,9.584664]
[1725781360199,45.26377054,130.17,130.11,20.0]
[1725781363122,45.26377054,130.17,130.12,11.12159545]
[1725781363307,45.26377054,130.17,130.13,20.0]
[1725781367215,0.26377054,130.17,130.13,20.0]
[1725781371121,45.26377054,130.17,130.12,9.584664]
[1725781371326,45.26377054,130.17,130.13,20.0]
[1725781386626,45.26377054,130.17,130.07,16.5812]
[1725781386834,45.26377054,130.17,130.1,9.584664]
[1725781387134,45.26377054,130.17,130.11,20.0]
[1725781387329,15.8602,130.16,130.11,20.0]
[1725781387536,45.0,130.15,130.11,20.0]
[1725781387914,6.5702,130.14,130.11,20.0]
[1725781388210,45.0,130.13,130.08,9.584664]
[1725781388410,45.0,130.13,130.09,20.0]
[1725781389019,45.0,130.13,130.09,9.584664]
[1725781389219,45.0,130.13,130.1,20.0]
[1725781392434,15.567,130.12,130.1,20.0]
[1725781392652,15.567,130.12,130.08,9.584664]
[1725781392847,15.567,130.12,130.09,20.0]
[1725781394157,45.0,130.11,130.03,22.7774]
[1725781394523,45.0,130.11,130.06,9.584664]
[1725781394742,45.0,130.11,130.05,9.584664]
[1725781395647,45.0,130.11,130.06,20.0]
[1725781397351,68.12,130.11,130.06,20.0]
[1725781397551,15.567,130.09,130.01,20.0]